lending/lending_fUSD_20251021
["ID","MTS","AMOUNT","RATE_DAILY","PERIOD"]
[391990436,1761065446097,-189.50889,0.00018247,2]
[391990439,1761065446111,-166.66,0.00018584,2]
[391990443,1761065446126,-155.0,0.00018589,2]
[391990446,1761065446140,-1000.0,0.00018734,2]
[391990450,1761065446154,-3386.95615495,0.0001876,2]
[391990452,1761065446168,-751.78,0.0001876,2]
[391990454,1761065446181,-151.0,0.000188,2]
[391990455,1761065446195,-460.06442092,0.00018973,2]
[391990456,1761065446211,-511.18920727,0.00018973,2]
[391990459,1761065446227,-501.00490054,0.00018973,2]
[391990462,1761065446241,-503.3865569,0.00018973,2]
[391990465,1761065446250,-556.93962434,0.00018973,2]
[391990468,1761065446260,-500.65530496,0.00018973,2]
[391990470,1761065446269,-347.12,0.00018999,2]
[391990472,1761065446279,-1000.0,0.00019,2]
[391990474,1761065446289,-29050.47539335,0.00019,2]
[391990478,1761065446313,-550.05300345,0.00019,2]
[391990481,1761065446334,-151.0,0.00015155,2]
[391990483,1761065446344,-1121.49182708,0.00019,2]
[391990492,1761065446638,-324.54814276,0.00019,2]
[391990493,1761065446685,-631.89036925,0.00019,2]
[391990496,1761065447298,-531.1499993,0.00015,2]
[391990497,1761065447322,-623.64006508,0.00015,2]
[391990498,1761065447335,-365.64897426,0.00015,2]
[391990499,1761065447347,-742.74609104,0.00015,2]
[391990500,1761065447364,-445.79336146,0.00015,2]
[391990501,1761065447390,-264.94364492,0.00015,2]
[391990502,1761065447403,-784.23518594,0.00015,2]
[391990503,1761065447412,-217.39444881,0.00015218,2]
[391990504,1761065447422,-396.32535925,0.00018,2]
[391990505,1761065447434,-3361.83196275,0.00018,2]
[391990506,1761065447444,-3758.157322,0.00018,2]
[391990507,1761065447454,-17936.04684458,0.00019,2]
[391990508,1761065447466,-8063.45630205,0.00019,2]
[391990528,1761065620516,-202.08027241,0.00014784,2]
[391990529,1761065620820,-1850.5258,0.00014868,2]
[391990530,1761065620847,-2500.0,0.00014883,2]
[391990531,1761065620873,-500.0,0.00014899,2]
[391990532,1761065620900,-500.0,0.00014899,2]
[391990533,1761065620926,-255.21040445,0.00014899,2]
[391990534,1761065620955,-77044.4293,0.000149,2]
[391990535,1761065620983,-1000.0,0.000149,2]
[391990536,1761065621008,-5000.0,0.000149,2]
[391990537,1761065621034,-2500.0,0.000149,2]
[391990538,1761065621059,-1250.88289908,0.000149,2]
[391990539,1761065621083,-300.0,0.00014901,2]
[391990540,1761065621107,-250.0,0.00014934,2]
[391990541,1761065621132,-372.91434912,0.00014934,2]
[391990542,1761065621160,-151.0,0.00015,2]
[391990543,1761065621186,-300.0,0.00015196,2]
[391990544,1761065621218,-150.68663309,0.00015303,2]
[391990545,1761065621244,-7861.19,0.00015308,2]
[391990546,1761065621269,-151.0,0.00015587,2]
[391990547,1761065621294,-151.0,0.00015712,2]
[391990549,1761065621321,-151.0,0.00015813,2]
[391990550,1761065621344,-250.0,0.000159,2]
[391990551,1761065621372,-151.0,0.00015903,2]
[391990552,1761065621398,-15095.12728122,0.00016291,2]
[391990553,1761065630795,151.0,0.00015569,2]
[391990554,1761065653591,-150.0,0.00015009,2]
[391990555,1761065653616,-151.0,0.00015603,2]
[391990556,1761065653641,-229.01521591,0.00015681,2]
[391990557,1761065664878,151.0,0.0001565,2]
[391990559,1761065685894,150.0,0.00015146,2]
[391990561,1761065688631,-500.0,0.00019178,30]
[391990562,1761065688655,-500.0,0.00019178,30]
[391990563,1761065688680,-500.0,0.00019178,30]
[391990564,1761065688705,-500.0,0.00019178,30]
[391990565,1761065688731,-500.0,0.00019178,30]
[391990566,1761065688761,-500.0,0.00019178,30]
[391990567,1761065688785,-500.0,0.00019178,30]
[391990568,1761065688810,-500.0,0.00019178,30]
[391990569,1761065688834,-500.0,0.00019178,30]
[391990570,1761065688859,-350.51960197,0.00019178,30]
[391990572,1761065688886,-614.895,0.0002,8]
[391990573,1761065688912,-2029.65942193,0.0002,14]
[391990580,1761065701610,-2145.29738555,0.000209,30]
[391990581,1761065701636,-249.57968393,0.000209,30]
[391990582,1761065736725,-151.0,0.00015739,2]
[391990583,1761065736750,-151.0,0.0001582,2]
[391990584,1761065736774,-550.0,0.00016354,2]
[391990585,1761065736802,-270.0,0.00016354,2]
[391990586,1761065736827,-2500.0,0.00016355,2]
[391990587,1761065736853,-195.0,0.00016355,2]
[391990588,1761065736878,-250.0,0.00016355,2]
[391990589,1761065736902,-300.0,0.00016355,2]
[391990590,1761065736927,-2146.59332326,0.00016355,2]
[391990591,1761065736951,-300.0,0.00016355,2]
[391990592,1761065736976,-2500.0,0.00016355,2]
[391990593,1761065737000,-250.0,0.0001651,2]
[391990599,1761065778911,-10115.49118681,0.0002,5]
[391990602,1761065837977,-1574.6,0.00017501,2]
[391990608,1761065857210,-1129.40288065,0.00018023,2]
[391990609,1761065857242,-476.03091061,0.00018175,2]
[391990610,1761065857268,-250.0,0.00018226,2]
[391990611,1761065857294,-993.26,0.00018346,2]
[391990612,1761065857318,-3067.33,0.00018356,2]
[391990613,1761065857342,-585.18408818,0.00018531,2]
[391990614,1761065857368,-300.0,0.00018643,2]
[391990615,1761065857396,-3764.7032549,0.00018644,2]
[391990616,1761065857420,-623.7101797,0.00018802,2]
[391990617,1761065857447,-328.73133,0.0001881,2]
[391990618,1761065857477,-6395.43,0.0001881,2]
[391990619,1761065857501,-9608.16,0.0001881,2]
[391990620,1761065857527,-546.5272,0.000189,2]
[391990621,1761065857552,-500.0,0.00018973,2]
[391990622,1761065857577,-192.79377433,0.00018973,2]
[391990623,1761065857609,-500.0,0.00018973,2]
[391990624,1761065857637,-215.0,0.00018999,2]
[391990625,1761065857667,-81285.4923736,0.00019,2]
[391990626,1761065857692,-426.4349018,0.00019,2]
[391990627,1761065857717,-1974.85559113,0.00019,2]
[391990628,1761065857743,-154.119924,0.00019,2]
[391990629,1761065857773,-151.0,0.00019,2]
[391990630,1761065857799,-15134.55723307,0.00019095,2]
[391990631,1761065863917,925.34703,0.00019095,2]
[391990632,1761065876204,-1000.0,0.0002,4]
[391990633,1761065883472,-151.0,0.00019178,2]
[391990634,1761065883502,-151.0,0.00019178,2]
[391990635,1761065883529,-157.99,0.00019218,2]
[391990636,1761065883558,-150.0,0.00019332,2]
[391990637,1761065883588,-150.0,0.00019332,2]
[391990638,1761065883615,-150.0,0.00019332,2]
[391990639,1761065883642,-1000.0,0.000194,2]
[391990640,1761065883671,-751.78,0.00019438,2]
[391990641,1761065883697,-234.89,0.0001948,2]
[391990642,1761065883722,-151.0,0.00019525,2]
[391990643,1761065883747,-150.0,0.00019618,2]
[391990644,1761065883773,-150.0,0.00019618,2]
[391990645,1761065883798,-150.0,0.00019618,2]
[391990646,1761065883824,-200.0,0.00019671,2]
[391990647,1761065883848,-1858.85758041,0.00019693,2]
[391990648,1761065883874,-2000.0,0.000197,2]
[391990649,1761065883903,-300.0,0.00019725,2]
[391990650,1761065883929,-4585.41,0.00019726,2]
[391990651,1761065883956,-229.58437115,0.000199,2]
[391990652,1761065883983,-2726.36015876,0.000199,2]
[391990653,1761065884009,-503.15038253,0.00019973,2]
[391990654,1761065884041,-275.82925792,0.00019999,2]
[391990655,1761065884066,-500.0,0.00019999,2]
[391990656,1761065884092,-177.90101291,0.00019999,2]
[391990657,1761065884118,-258.99515946,0.00019999,2]
[391990658,1761065884143,-1000.0,0.0002,2]
[391990659,1761065884171,-76048.48364616,0.0002,2]
[391990673,1761066014597,32863.24978077,0.00030137,120]
[391990693,1761066112288,788.51,7.654e-05,2]
[391990694,1761066112718,788.51,8.057e-05,2]
[391990695,1761066112954,788.51,8.46e-05,2]
[391990696,1761066113183,788.51,8.863e-05,2]
[391990697,1761066113612,788.51,9.266e-05,2]
[391990698,1761066113814,788.51,9.668e-05,2]
[391990699,1761066114038,788.51,0.00010071,2]
[391990700,1761066114246,788.51,0.00010474,2]
[391990701,1761066114518,788.51,0.00010877,2]
[391990702,1761066114744,788.51,0.0001128,2]
[391990703,1761066114940,788.51,0.00011683,2]
[391990704,1761066115148,788.51,0.00012085,2]
[391990705,1761066115380,788.51,0.00012488,2]
[391990706,1761066115559,788.51,0.00012891,2]
[391990707,1761066115761,788.51,0.00013294,2]
[391990708,1761066116002,788.51,0.00013697,2]
[391990736,1761066310956,-788.51,0.000141,2]
[391990738,1761066316764,-788.51,0.00014503,2]
[391990745,1761066328384,-788.51,0.00014905,2]
[391990752,1761066336475,-788.51,0.00015308,2]
[391990770,1761066416265,371.56,0.00013699,2]
[391990773,1761066425099,-300.0,0.00015509,2]
[391990774,1761066425121,-193.35913055,0.0001551,2]
[391990775,1761066425143,-500.0,0.0001551,2]
[391990776,1761066425166,-300.0,0.0001551,2]
[391990777,1761066425187,-2213.34378225,0.0001551,2]
[391990778,1761066425209,-113.07913055,0.0001551,2]
[391990794,1761066505513,-130.28,0.0001551,2]
[391990795,1761066505534,-169.72,0.00015955,2]
[391990796,1761066521466,-300.0,0.00016843,2]
[391990797,1761066521486,-250.0,0.00017,2]
[391990798,1761066527332,-300.0,0.00017061,2]
[391990799,1761066527353,-306.64086945,0.00017061,2]
[391990800,1761066540432,-1499.48,0.00015308,2]
[391990801,1761066540453,-461.16,0.00018082,2]
[391990802,1761066540473,-476.03091061,0.00018175,2]
[391990803,1761066540493,-263.32908939,0.00018382,2]
[391990836,1761066632257,-250.0,0.00015308,7]
[391990837,1761066632267,-37.79711486,0.00018382,2]
[391990838,1761066632276,-461.16,0.0001876,2]
[391990839,1761066632285,-287.0,0.00018903,2]
[391990840,1761066632294,-300.0,0.00018903,2]
[391990841,1761066632303,-233.94,0.00018904,2]
[391990842,1761066632312,-544.0,0.00018904,2]
[391990843,1761066632324,-544.0,0.00018904,2]
[391990844,1761066632333,-544.0,0.00018904,2]
[391990845,1761066632343,-173.43799364,0.00018904,2]
[391990846,1761066632354,-370.56200636,0.00018904,2]
[391990847,1761066632363,-544.0,0.00018904,2]
[391990848,1761066632373,-10.54325279,0.00018904,2]
[391990849,1761066632384,-533.45674721,0.00018904,2]
[391990850,1761066632394,-180.3776784,0.00018904,2]
[391990851,1761066632406,-363.6223216,0.00018904,2]
[391990852,1761066632415,-544.0,0.00018904,2]
[391990853,1761066632424,-544.0,0.00018904,2]
[391990854,1761066632434,-544.0,0.00018904,2]
[391990855,1761066632442,-544.0,0.00018904,2]
[391990856,1761066632452,-544.0,0.00018904,2]
[391990857,1761066632462,-544.0,0.00018904,2]
[391990858,1761066632472,-241.0,0.00018904,2]
[391990859,1761066632482,-241.0,0.00018904,2]
[391990860,1761066632491,-241.0,0.00018904,2]
[391990861,1761066632502,-241.0,0.00018904,2]
[391990862,1761066632512,-241.0,0.00018904,2]
[391990863,1761066632521,-241.0,0.00018904,2]
[391990864,1761066632530,-241.0,0.00018904,2]
[391990865,1761066632539,-241.0,0.00018904,2]
[391990866,1761066632549,-241.0,0.00018904,2]
[391990867,1761066632558,-241.0,0.00018904,2]
[391990868,1761066632567,-241.0,0.00018904,2]
[391990869,1761066632576,-241.0,0.00018904,2]
[391990871,1761066632585,-241.0,0.00018904,2]
[391990872,1761066632594,-454.0,0.00018904,2]
[391990875,1761066632604,-454.0,0.00018904,2]
[391990876,1761066632613,-454.0,0.00018904,2]
[391990878,1761066632622,-454.0,0.00018904,2]
[391990880,1761066632631,-454.0,0.00018904,2]
[391990883,1761066632641,-454.0,0.00018904,2]
[391990884,1761066632650,-454.0,0.00018904,2]
[391990886,1761066632659,-454.0,0.00018904,2]
[391990888,1761066632669,-454.0,0.00018904,2]
[391990889,1761066632681,-454.0,0.00018904,2]
[391990890,1761066632690,-454.0,0.00018904,2]
[391990891,1761066632699,-454.0,0.00018904,2]
[391990892,1761066632708,-454.0,0.00018904,2]
[391990893,1761066632718,-202.0,0.00018904,2]
[391990894,1761066632726,-202.0,0.00018904,2]
[391990895,1761066632735,-202.0,0.00018904,2]
[391990896,1761066632744,-202.0,0.00018904,2]
[391990897,1761066632757,-202.0,0.00018904,2]
[391990899,1761066632765,-202.0,0.00018904,2]
[391990901,1761066632775,-202.0,0.00018904,2]
[391990903,1761066632784,-202.0,0.00018904,2]
[391990905,1761066632793,-202.0,0.00018904,2]
[391990906,1761066632802,-202.0,0.00018904,2]
[391990909,1761066632811,-202.0,0.00018904,2]
[391990911,1761066632821,-202.0,0.00018904,2]
[391990912,1761066632830,-202.0,0.00018904,2]
[391990914,1761066632839,-415.0,0.00018904,2]
[391990916,1761066632849,-415.0,0.00018904,2]
[391990918,1761066632858,-415.0,0.00018904,2]
[391990920,1761066632867,-415.0,0.00018904,2]
[391990922,1761066632876,-415.0,0.00018904,2]
[391990924,1761066632885,-415.0,0.00018904,2]
[391990926,1761066632894,-415.0,0.00018904,2]
[391990928,1761066632903,-415.0,0.00018904,2]
[391990930,1761066632912,-415.0,0.00018904,2]
[391990933,1761066632926,-415.0,0.00018904,2]
[391990935,1761066632935,-415.0,0.00018904,2]
[391990937,1761066632946,-295.3776784,0.00018904,2]
[391990939,1761066632958,-119.6223216,0.00018904,2]
[391990941,1761066632967,-415.0,0.00018904,2]
[391990943,1761066632977,-196.0,0.00018904,2]
[391990945,1761066632986,-196.0,0.00018904,2]
[391990947,1761066632995,-196.0,0.00018904,2]
[391990949,1761066633005,-196.0,0.00018904,2]
[391990951,1761066633014,-196.0,0.00018904,2]
[391990953,1761066633024,-196.0,0.00018904,2]
[391990955,1761066633033,-196.0,0.00018904,2]
[391990957,1761066633043,-196.0,0.00018904,2]
[391990959,1761066633053,-196.0,0.00018904,2]
[391990961,1761066633062,-196.0,0.00018904,2]
[391990963,1761066633072,-196.0,0.00018904,2]
[391990965,1761066633082,-196.0,0.00018904,2]
[391990967,1761066633091,-196.0,0.00018904,2]
[391990969,1761066633100,-377.0,0.00018904,2]
[391990971,1761066633109,-377.0,0.00018904,2]
[391990973,1761066633118,-377.0,0.00018904,2]
[391990975,1761066633128,-377.0,0.00018904,2]
[391990977,1761066633138,-377.0,0.00018904,2]
[391990979,1761066633147,-377.0,0.00018904,2]
[391990981,1761066633156,-377.0,0.00018904,2]
[391990983,1761066633166,-377.0,0.00018904,2]
[391990985,1761066633175,-377.0,0.00018904,2]
[391990987,1761066633185,-377.0,0.00018904,2]
[391990989,1761066633194,-377.0,0.00018904,2]
[391990991,1761066633203,-377.0,0.00018904,2]
[391990993,1761066633213,-377.0,0.00018904,2]
[391990995,1761066633222,-203.0,0.00018904,2]
[391990997,1761066633232,-203.0,0.00018904,2]
[391990999,1761066633242,-203.0,0.00018904,2]
[391991001,1761066633251,-203.0,0.00018904,2]
[391991003,1761066633260,-203.0,0.00018904,2]
[391991005,1761066633270,-203.0,0.00018904,2]
[391991007,1761066633280,-203.0,0.00018904,2]
[391991009,1761066633289,-203.0,0.00018904,2]
[391991011,1761066633298,-203.0,0.00018904,2]
[391991013,1761066633307,-65.08578768,0.00018904,2]
[391991017,1761066633337,-137.91421232,0.00018904,2]
[391991019,1761066633346,-203.0,0.00018904,2]
[391991021,1761066633354,-203.0,0.00018904,2]
[391991023,1761066633363,-61.79838339,0.00018904,2]
[391991025,1761066633374,-141.20161661,0.00018904,2]
[391991027,1761066633383,-2974.40981877,0.0001913,2]
[391991029,1761066633394,-1508.67617989,0.0001913,2]
[391991031,1761066633405,-345.42448956,0.0001913,2]
[391991034,1761066633423,-1026.2531425,0.0001913,2]
[391991036,1761066633434,-15031.03412054,0.0001913,2]
[391991038,1761066633443,-233.94,0.00019178,2]
[391991040,1761066633452,-461.16,0.00019438,2]
[391991042,1761066633461,-233.94,0.00019452,2]
[391991044,1761066633471,-168.0,0.00019646,2]
[391991047,1761066633481,-150.0,0.00019646,2]
[391991049,1761066633490,-233.94,0.00019726,2]
[391991051,1761066633501,-168.0,0.0001973,2]
[391991053,1761066633511,-1045.0653,0.000198,2]
[391991055,1761066633520,-623.7101797,0.00019863,2]
[391991057,1761066633530,-445.86977539,0.00019973,2]
[391991059,1761066633539,-500.0,0.00019973,2]
[391991061,1761066633549,-151.1,0.00019973,2]
[391991063,1761066633558,-3799.7054211,0.0002,2]
[391991079,1761066633709,-1127.84011421,0.0002,2]
[391991081,1761066633721,-615.91582045,0.0002,2]
[391991083,1761066633731,-1182.67376955,0.0002,2]
[391991122,1761066638187,-38276.45446276,0.0002,2]
[391991123,1761066638199,-2738.57533887,0.0002,2]
[391991124,1761066638210,-11179.28545814,0.0002,2]
[391991125,1761066638222,-5578.35932506,0.0002,2]
[391991126,1761066638234,-457.68993052,0.0002,2]
[391991127,1761066638246,-329.9224232,0.0002,2]
[391991128,1761066638272,-297.18518212,0.00018903,2]
[391991129,1761066638296,-178.84572849,0.00018903,2]
[391991130,1761066638306,-1267.78066532,0.0002,2]
[391991131,1761066638317,-4035.39051205,0.0002,2]
[391991132,1761066638328,-11278.0,0.0002,2]
[391991133,1761066638351,-495.1497182,0.0002,2]
[391991134,1761066638405,-1052.681047,0.0002,2]
[391991323,1761066640383,-1472.79639595,0.0002,2]
[391991325,1761066640394,-9447.39981517,0.0002,2]
[391991327,1761066640405,-2673.39513054,0.0002,2]
[391991329,1761066640414,-151.0,0.0002,2]
[391991331,1761066640424,-233.94,0.0002,2]
[391991333,1761066640433,-380.82,0.00020039,2]
[391991335,1761066640442,-168.0,0.00020085,2]
[391991337,1761066640451,-1000.0,0.000201,2]
[391991339,1761066640460,-461.16,0.00020116,2]
[391991341,1761066640469,-371.56,0.00020187,2]
[391991343,1761066640479,-1002.97486957,0.000202,2]
[391991347,1761066640506,-223.02513043,0.000202,2]
[391991349,1761066640515,-157.99,0.0002023,2]
[391991351,1761066640525,-163.62,0.00020491,2]
[391991353,1761066640534,-335.39498737,0.00020548,2]
[391991356,1761066640549,-1129.3,0.00020548,2]
[391991360,1761066640585,-2290.02501263,0.00020548,2]
[391991362,1761066640594,-420.0,0.00020606,2]
[391991364,1761066640603,-1.48099871,0.00020608,2]
[391991367,1761066640614,-998.51900129,0.00020608,2]
[391991369,1761066640623,-819.0,0.00020635,2]
[391991371,1761066640632,-1286.716,0.00020635,2]
[391991373,1761066640641,-461.16,0.00020795,2]
[391991375,1761066640650,-1045.06531,0.000208,2]
[391991377,1761066640660,-555.53,0.00020843,2]
[391991379,1761066640675,-200.0,0.000209,2]
[391991381,1761066640685,-200.0,0.000209,2]
[391991383,1761066640694,-289.26622063,0.000209,2]
[391991385,1761066640704,-152.0,0.000209,2]
[391991386,1761066640715,-152.0,0.000209,2]
[391991388,1761066640723,-233.29865209,0.000209,2]
[391991390,1761066640733,-152.06297962,0.000209,2]
[391991392,1761066640742,-151.0,0.000209,2]
[391991394,1761066640753,-273.95370428,0.0002095,2]
[391991396,1761066640762,-500.0,0.0002095,2]
[391991398,1761066640772,-206.46673641,0.0002095,2]
[391991400,1761066640781,-2932.67534562,0.00020951,2]
[391991413,1761066640893,-269.36548125,0.00020951,2]
[391991416,1761066640912,-782.34219308,0.00020951,2]
[391991459,1761066643446,-6015.60698005,0.00020951,2]
[391991460,1761066643456,-999.99,0.00020951,2]
[391991461,1761066643465,-343.56,0.00020951,2]
[391991462,1761066643475,-5786.18,0.00020951,2]
[391991463,1761066643484,-1528.04,0.00020951,2]
[391991464,1761066643494,-150.99,0.00020951,2]
[391991465,1761066643503,-329.93,0.00020951,2]
[391991466,1761066643515,-12120.42,0.00020951,2]
[391991467,1761066643524,-5969.55,0.00020951,2]
[391991468,1761066643534,-150.99,0.00020951,2]
[391991469,1761066643543,-5500.93,0.00020951,2]
[391991470,1761066643552,-8141.11,0.00020951,2]
[391991471,1761066643562,-1000.0,0.00021,2]
[391991472,1761066643573,-6451.0,0.00021104,2]
[391991473,1761066643583,-6534.0,0.00021104,2]
[391991474,1761066643593,-2591.0,0.00021104,2]
[391991475,1761066643603,-581.688,0.00021104,2]
[391991476,1761066643612,-5615.0,0.00021104,2]
[391991477,1761066643622,-200.0,0.00021109,2]
[391991478,1761066643631,-157.99,0.00021241,2]
[391991479,1761066643640,-234.89,0.00021251,2]
[391991480,1761066643649,-2453.72414283,0.00021325,2]
[391991481,1761066643659,-840.0188401,0.00021374,2]
[391991482,1761066643670,-500.0,0.0002141,2]
[391991483,1761066643682,-150.0,0.00021425,2]
[391991484,1761066643692,-150.0,0.00021425,2]
[391991485,1761066643702,-150.0,0.00021425,2]
[391991486,1761066643711,-6704.06874554,0.000215,2]
[391991487,1761066643723,-1045.06531,0.000218,2]
[391991488,1761066643732,-5000.0,0.00021918,2]
[391991489,1761066643742,-229.58437114,0.00021948,2]
[391991490,1761066643753,-187.4335383,0.00021983,2]
[391991491,1761066643767,-500.0,0.00021999,2]
[391991492,1761066643777,-500.0,0.00021999,2]
[391991493,1761066643787,-500.0,0.00021999,2]
[391991494,1761066643796,-520.16,0.00021999,2]
[391991495,1761066643806,-2299.99999004,0.00022,3]
[391991496,1761066643815,-1457.7176636,0.00022,30]
[391991497,1761066643824,-1000.0,0.00022,2]
[391991498,1761066643833,-696.0,0.00022,7]
[391991499,1761066643842,-500.0,0.00022124,2]
[391991500,1761066643852,-500.0,0.00022225,2]
[391991501,1761066643862,-587.0,0.00022463,2]
[391991502,1761066643871,-1000.0,0.00022481,2]
[391991503,1761066643881,-257.0,0.00022626,2]
[391991504,1761066643890,-572.0,0.00022726,2]
[391991505,1761066643899,-818.0,0.00022726,2]
[391991506,1761066643909,-2052.0,0.00022726,2]
[391991507,1761066643918,-1314.711,0.00022726,2]
[391991508,1761066643927,-614.323,0.00022726,2]
[391991509,1761066643936,-1590.0,0.00022726,2]
[391991510,1761066643946,-2453.72414281,0.00022759,2]
[391991511,1761066643955,-1045.0653,0.000228,2]
[391991512,1761066643964,-1000.0,0.00023,2]
[391991513,1761066643973,-160.44,0.000231,2]
[391991514,1761066643983,-151.0,0.00023118,7]
[391991515,1761066643992,-294.27489623,0.00023311,2]
[391991516,1761066644001,-2000.0,0.000234,2]
[391991517,1761066644012,-500.0,0.00023468,2]
[391991519,1761066644021,-817.0,0.00023635,2]
[391991521,1761066644033,-1268.0,0.00023635,2]
[391991523,1761066644042,-1045.06531,0.000238,2]
[391991525,1761066644051,-685.82,0.00023836,2]
[391991527,1761066644060,-958.53,0.00023844,2]
[391991529,1761066644069,-163.62,0.00023873,2]
[391991531,1761066644078,-229.58437114,0.00023996,2]
[391991533,1761066644087,-1000.0,0.00024,2]
[391991535,1761066644096,-2079.18,0.00024104,2]
[391991554,1761066644264,-6534.0,0.00024104,2]
[391991556,1761066644275,-2591.0,0.00024104,2]
[391991558,1761066644285,-557.0,0.00024104,2]
[391991560,1761066644295,-2453.72414281,0.00024194,2]
[391991562,1761066644304,-250.0,0.00024289,2]
[391991564,1761066644314,-20000.0,0.00024312,2]
[391991566,1761066644323,-155.48632212,0.00024452,2]
[391991568,1761066644333,-773.0,0.00024487,2]
[391991570,1761066644343,-1574.6,0.00024501,2]
[391991572,1761066644352,-299.08,0.00024658,2]
[391991574,1761066644361,-1000.0,0.00024658,2]
[391991576,1761066644370,-3424.86746642,0.0002475,2]
[391991578,1761066644380,-202.8170051,0.00024771,2]
[391991580,1761066644390,-500.0,0.00024799,2]
[391991582,1761066644399,-152.58421,0.000248,7]
[391991584,1761066644408,-11822.3982805,0.000248,2]
[391991586,1761066644417,-1045.06531,0.000248,2]
[391991588,1761066644427,-5000.0,0.000248,2]
[391991590,1761066644437,-20000.0,0.00024812,2]
[391991592,1761066644446,-162.220356,0.0002485,3]
[391991593,1761066644456,-500.0,0.00024889,2]
[391991594,1761066644465,-520.16,0.00024889,2]
[391991595,1761066644475,-23644.796561,0.0002489,2]
[391991596,1761066644485,-500.0,0.00024899,2]
[391991597,1761066644494,-248.365009,0.000249,7]
[391991598,1761066644504,-151.0,0.000249,7]
[391991599,1761066644516,-151.0,0.000249,7]
[391991601,1761066644525,-151.0,0.000249,7]
[391991603,1761066644534,-300.0,0.000249,7]
[391991605,1761066644544,-151.0,0.000249,7]
[391991607,1761066644554,-152.759565,0.000249,7]
[391991609,1761066644566,-152.199129,0.000249,7]
[391991611,1761066644575,-153.72555775,0.000249,2]
[391991613,1761066644584,-23644.796561,0.0002499,2]
[391991615,1761066644593,-5000.0,0.00025,2]
[391991617,1761066644602,-1000.0,0.00025,2]
[391991619,1761066644612,-158.0,0.00025,7]
[391991621,1761066644621,-151.0,0.00025,7]
[391991623,1761066644631,-151.0,0.00025,7]
[391991625,1761066644640,-151.0,0.00025,7]
[391991627,1761066644649,-151.0,0.00025,7]
[391991629,1761066644658,-151.0,0.00025,7]
[391991631,1761066644667,-151.0,0.00025,7]
[391991633,1761066644681,-151.0,0.00025,7]
[391991636,1761066644691,-151.0,0.00025,7]
[391991638,1761066644700,-151.0,0.00025,7]
[391991639,1761066644711,-151.0,0.00025,7]
[391991642,1761066644721,-151.0,0.00025,7]
[391991643,1761066644731,-151.0,0.00025,7]
[391991645,1761066644741,-7092.5155,0.00025,7]
[391991647,1761066644751,-7092.5155,0.00025,7]
[391991649,1761066644763,-151.0,0.00025,7]
[391991651,1761066644772,-7092.5155,0.00025,7]
[391991653,1761066644783,-7092.5155,0.00025,7]
[391991655,1761066644792,-150.0,0.00025106,2]
[391991657,1761066644801,-152.0,0.00025221,3]
[391991659,1761066644812,-11822.3982805,0.00025292,2]
[391991661,1761066644820,-11822.3982805,0.00025302,2]
[391991663,1761066644830,-20000.0,0.00025312,2]
[391991665,1761066644839,-5511.0,0.000254,3]
[391991667,1761066644848,-176.42435789,0.00025517,3]